Cogmind - Beta 13 @@@ ROGUE MODE // 2024.04.16 @ 22:13:29 Player: Briefgarde Result: Destroyed by D-53 Grenadier with Mini Grenade Launcher Performance ------------- Evolutions (1) 500 Regions Visited (4) 800 Robots Destroyed (44) 220 Value Destroyed (904) 904 Prototype IDs (5) 100 Alien Tech Used (0) 0 Bonus (105) 105 TOTAL SCORE: 2629 Bonus ------- High Alert Combat Kills 25 Follower Combat Kills 80 Cogmind --------- Core Integrity 0/400 Matter 300/300 Energy 100/100 System Corruption 0% Temperature Cool (0) Movement Core (350) Ox6 Location -9/Mines Parts ------- > --- POWER (1) -------- (None) > --- PROPULSION (2) --- (None) > --- UTILITY (4) ------ Large Storage Unit Terrain Scan Processor Improved Targeting Computer > --- WEAPON (2) ------- (None) > --- INVENTORY (15) --- Light Ion Engine Improved Flight Unit Improved Flight Unit Improved Flight Unit Cooling System Visual Processing Unit Transport Network Coupler Hacking Suite Improved EM Shotgun Advanced Beam Cannon Heavy Assault Rifle Grenade Launcher Peak State ------------ > --- POWER ------------ Heavy Ion Engine > --- PROPULSION ------- Light Treads Armored Wheel > --- UTILITY ---------- Large Storage Unit Terrain Scan Processor Improved Targeting Computer Light Armor Plating > --- WEAPON ----------- Improved EM Shotgun Advanced Beam Cannon > --- INVENTORY -------- Ion Engine Light Ion Engine Light Treads Light Treads Improved Hover Unit Improved Flight Unit Heat Sink Visual Processing Unit Terrain Scanner Transport Network Coupler Hacking Suite Improved EM Shotgun Advanced Beam Cannon Heavy Assault Rifle Grenade Launcher [Rating: 20] Favorites ----------- Power Light Ion Engine Engine Light Ion Engine Propulsion Light Treads Treads Light Treads Leg Aluminum Leg Wheel Compact Wheel Flight Unit Improved Flight Unit Utility Large Storage Unit Device Terrain Scanner Storage Large Storage Unit Processor Terrain Scan Processor Protection Light Armor Plating Weapon Beam Cannon Energy Gun Improved EM Shotgun Energy Cannon Beam Cannon Ballistic Gun Assault Rifle Build | -11 -10 -10 -9 -9 ------- Run | Yrd Mat Min Mat Min Slots Evolved 2 | . . . 2 . Power . | . . . . . Propulsion . | . . . . . Utility 2 | . . . 2 . Weapon . | . . . . . Parts Attached 41 | 6 10 1 22 2 Power 8 | 1 2 . 5 . Engine 8 | 1 2 . 5 . Core . | . . . . . Reactor . | . . . . . Propulsion 11 | 2 2 . 6 1 Treads 6 | 1 1 . 4 . Leg 1 | . 1 . . . Wheel 3 | 1 . . 1 1 Hover . | . . . . . Flight 1 | . . . 1 . Utility 10 | 1 4 . 4 1 Device 2 | . 1 . . 1 Storage 2 | 1 1 . . . Processor 2 | . . . 2 . Hackware . | . . . . . Protection 4 | . 2 . 2 . Artifact . | . . . . . Weapon 12 | 2 2 1 7 . Energy Gun 3 | . . . 3 . Energy Cannon 4 | . 2 . 2 . Ballistic Gun 5 | 2 . 1 2 . Ballistic Cannon . | . . . . . Launcher . | . . . . . Special Weapon . | . . . . . Impact Weapon . | . . . . . Slashing Weapon . | . . . . . Piercing Weapon . | . . . . . Special Melee Weapon . | . . . . . Unidentified Prototypes 5 | . . . 5 . Parts Lost 16 | . 3 . 6 7 Power 5 | . 1 . 3 1 Propulsion 4 | . 1 . . 3 Utility 5 | . 1 . 3 1 Weapon 2 | . . . . 2 Highest Loss Streak 7 | . 2 . 2 7 To Critical Strikes . | . . . . . Average Slot Usage (%) 95 | . 95 100 95 97 Engine 12 | . 14 14 9 10 Treads 12 | . 13 14 11 10 Wheel 12 | . 14 14 10 11 Storage 12 | . 14 14 11 11 Processor 9 | . . . 20 22 Protection 8 | . 9 14 9 . Energy Gun 2 | . . . 5 10 Energy Cannon 12 | . 13 14 11 10 Ballistic Gun 10 | . 14 14 5 . Naked Turns . | . . . . . Heaviest Build 35 | 11 33 32 35 31 Greatest Support 40 | 20 20 20 40 20 Greatest Overweight (x) 2 | 1 2 1 2 2 Average Overweight (x) 1 | . . 1 1 1 Largest Inventory Capacity 15 | 8 15 15 15 15 Average Capacity 14 | 6 14 15 15 15 Most Carried 15 | 6 12 15 15 13 Average Carried 11 | 4 8 12 13 12 Final Capacity 15 | 8 15 15 15 15 Final Carried 15 | 6 11 15 14 12 Class Distribution -------------------- 100% | Mutant Dominant Class ---------------- Mutant | -10/Materials Mutant | -10/Mines Mutant | -9/Materials Mutant | -9/Mines Resources | -11 -10 -10 -9 -9 ----------- Run | Yrd Mat Min Mat Min Matter Collected 818 | 201 296 35 286 . Remotely . | . . . . . Salvage Created 1574 | . 494 31 1049 . Parts 113 | . 29 5 79 . Haulers Intercepted 7 | . 2 . 5 . Recyclers Shooed 1 | . . . 1 . Parts Field Recycled . | . . . . . Retrieved Matter . | . . . . . Parts Self-Destructed . | . . . . . Prevented . | . . . . . Kills | -11 -10 -10 -9 -9 ------- Run | Yrd Mat Min Mat Min Combat Hostiles Destroyed 31 | . 8 3 20 . Guns 11 | . 1 . 10 . Cannons 16 | . 7 . 9 . AOE 4 | . . 3 1 . Classes Destroyed 8 | . 5 . 3 . Builder 2 | . . . 2 . Hauler 7 | . 2 . 5 . Recycler 2 | . 1 . 1 . Operator 1 | . 1 . . . Watcher 1 | . . . 1 . Swarmer 15 | . 2 3 10 . Grunt 10 | . 6 . 4 . Sentry 6 | . . . 6 . Best Kill Streak 6 | . 3 3 6 . Combat Bots Only 5 | . 2 3 5 . Max Kills in Single Turn 3 | . 1 3 2 . Gunslinging . | . . . . . Exploded 3 | . . 3 1 . Melee . | . . . . . Uniques/NPCs Destroyed . | . . . . . Combat | -11 -10 -10 -9 -9 -------- Run | Yrd Mat Min Mat Min Hostile Shots Fired 165 | . 37 6 102 20 Missed 35 | . 5 1 28 1 Damage Taken 2202 | . 451 75 937 739 Core 443 | . 35 . 137 271 Absorbed by Shields . | . . . . . Core Remaining (%) 93 | 100 . 86 . . Volleys Fired 98 | . 43 2 52 1 Largest 2 | . 2 1 2 1 Hottest 113 | . 80 60 113 68 Shots Fired 172 | . 79 2 90 1 Gun 87 | . 35 . 52 . Cannon 85 | . 44 2 38 1 Launcher . | . . . . . Special . | . . . . . Kinetic 62 | . 35 . 27 . Thermal 85 | . 44 2 38 1 Explosive . | . . . . . Electromagnetic 25 | . . . 25 . Robot Hit Streak 16 | . 7 . 16 1 Robot Miss Streak 5 | . 3 2 5 . Penetration Max . | . . . . . Secondary Targets . | . . . . . Shots Hit Robots 112 | . 47 . 64 1 Core Hits 55 | . 18 2 35 . Critical Kills . | . . . . . Critical Parts Destroyed 1 | . 1 . . . Critical Strikes 1 | . 1 . . . Destroy 1 | . 1 . . . Melee Attacks . | . . . . . Impact . | . . . . . Slashing . | . . . . . Piercing . | . . . . . Sneak Attacks . | . . . . . Combat Hostiles . | . . . . . Follow-up Attacks . | . . . . . Damage Inflicted 2228 | . 758 131 1319 20 Guns 923 | . 229 . 694 . Cannons 1114 | . 529 . 565 20 Explosions 191 | . . 131 60 . Melee . | . . . . . Ramming . | . . . . . Kinetic 557 | . 229 . 328 . Thermal 1305 | . 529 131 625 20 Explosive . | . . . . . Electromagnetic 366 | . . . 366 . Impact . | . . . . . Slashing . | . . . . . Piercing . | . . . . . Highest Corruption 6 | . 6 6 . . Average Corruption 4 | . 4 6 . . Corruption Purged . | . . . . . Corruption Blocked . | . . . . . Effects 29 | . 23 6 . . Message Errors 5 | . 3 2 . . Matter Fused 9 | . 8 1 . . Heat Flow Errors 1 | . . 1 . . Energy Discharges 8 | . 7 1 . . Parts Rejected 1 | . 1 . . . Data Loss (minor) 2 | . 2 . . . Data Loss (major) 1 | . . 1 . . Misfires 1 | . 1 . . . Alerts 1 | . 1 . . . Overload Shots . | . . . . . Overflow Damage 39 | . 10 27 2 . Projectiles 10 | . 10 . . . Explosions 29 | . . 27 2 . Melee . | . . . . . Knockbacks . | . . . . . Impact . | . . . . . Kinetic . | . . . . . Secondary . | . . . . . Self-Inflicted Damage 63 | . . 34 29 . Shots 3 | . . 2 1 . Rammed . | . . . . . Targets Rammed . | . . . . . Kicked . | . . . . . Crushed . | . . . . . Highest Temperature 318 | . 194 87 318 12 Average Temperature 73 | . 69 32 80 9 Received Heat Transfer 423 | . 177 . 246 . Effects 2 | . . . 2 . Interference 2 | . . . 2 . Siege Activations . | . . . . . Robots Corrupted . | . . . . . Combat Hostiles . | . . . . . Parts Fried 2 | . . . 2 . Impact Corruptions . | . . . . . Robots Melted . | . . . . . Combat Hostiles . | . . . . . Parts Melted 1 | . 1 . . . Heat Transferred 2483 | . 1110 150 1186 37 Parts Sabotaged . | . . . . . Parts Stolen . | . . . . . Parts Stripped . | . . . . . Power Chain Reactions 2 | . . . 2 . Alert | -11 -10 -10 -9 -9 ------- Run | Yrd Mat Min Mat Min Peak Influence 515 | . 164 156 515 153 Initial 153 | . . 23 60 153 Average 155 | . 44 152 304 149 Maximum Alert Level 2 | . . . 2 . Low Security (%) 70 | 100 100 100 23 100 Level 1 26 | . . . 70 . Level 2 2 | . . . 6 . Level 3 . | . . . . . Level 4 . | . . . . . Level 5 . | . . . . . High Security . | . . . . . Max Security . | . . . . . Squads Dispatched 1 | . 1 . . . Investigation . | . . . . . Extermination . | . . . . . Reinforcement 1 | . 1 . . . Assault . | . . . . . Garrison . | . . . . . Intercept . | . . . . . Searches Triggered . | . . . . . Construction Impeded . | . . . . . Haulers Reinforced . | . . . . . Active Scanning Responses . | . . . . . Cargo Convoy Interrupts . | . . . . . Stealth | -11 -10 -10 -9 -9 --------- Run | Yrd Mat Min Mat Min Distress Signals 8 | . 2 . 4 2 Communications Jammed . | . . . . . Distress Signals . | . . . . . Times Spotted 70 | . 32 3 33 2 Peak Tracking Total 7 | . 4 3 7 2 Tactical Retreats 9 | . 6 . 3 . Traps | -11 -10 -10 -9 -9 ------- Run | Yrd Mat Min Mat Min Traps Triggered 6 | . 5 . 1 . Indirectly . | . . . . . Trap Hack Attempts . | . . . . . Triggered . | . . . . . Disarmed . | . . . . . Reprogrammed . | . . . . . Reused . | . . . . . Traps Extracted . | . . . . . Installed . | . . . . . Triggered . | . . . . . Machines | -11 -10 -10 -9 -9 ---------- Run | Yrd Mat Min Mat Min Machines Disabled 5 | . 1 3 1 . Max in Single Turn 3 | . 1 3 1 . Machines Repaired . | . . . . . Machines Dismantled . | . . . . . Machines Sabotaged . | . . . . . Overloaded Fab Kills . | . . . . . Hacking | -11 -10 -10 -9 -9 --------- Run | Yrd Mat Min Mat Min Machines Accessed 6 | . 4 1 1 . Terminals 6 | . 4 1 1 . Fabricators . | . . . . . Repair Stations . | . . . . . Recycling Units . | . . . . . Scanalyzers . | . . . . . Garrison Access . | . . . . . Total Hacks 15 | . 8 1 6 . Successful 3 | . 2 . 1 . Failed 11 | . 5 1 5 . Catastrophic 1 | . 1 . . . Database Lockouts 1 | . 1 . . . Manual 18 | . 8 1 9 . Terminals 15 | . 8 1 6 . Fabricators . | . . . . . Repair Stations . | . . . . . Recycling Units . | . . . . . Scanalyzers . | . . . . . Garrison Access . | . . . . . Terminal Hacks 3 | . 2 . 1 . Robot Analysis 2 | . 1 . 1 . Hauler Manifests 1 | . 1 . . . Fabricator Hacks . | . . . . . Repair Station Hacks . | . . . . . Recycling Unit Hacks . | . . . . . Scanalyzer . | . . . . . Garrison Access Hacks . | . . . . . Unauthorized Hacks . | . . . . . Terminals . | . . . . . Fabricators . | . . . . . Repair Stations . | . . . . . Recycling Units . | . . . . . Scanalyzers . | . . . . . Garrison Access . | . . . . . Data Cores Recovered . | . . . . . Used . | . . . . . Hacking Detections 4 | . 3 . 1 . Full Trace Events 1 | . 1 . . . Feedback Events . | . . . . . Feedback Blocked . | . . . . . Robot Schematics Acquired . | . . . . . Robots Built . | . . . . . Authchips . | . . . . . Time . | . . . . . Total Robot Build Rating . | . . . . . Part Schematics Acquired . | . . . . . Parts Built . | . . . . . Authchips . | . . . . . Time . | . . . . . Total Part Build Rating . | . . . . . Parts Repaired . | . . . . . Time . | . . . . . Parts Recycled . | . . . . . Recycled Matter . | . . . . . Retrieved Matter . | . . . . . Retrieved Components . | . . . . . Parts Scanalyzed . | . . . . . Part Schematics Acquired . | . . . . . Parts Damaged . | . . . . . Bothacking | -11 -10 -10 -9 -9 ------------ Run | Yrd Mat Min Mat Min Used RIF Installer . | . . . . . Robots Hacked . | . . . . . Non-combat . | . . . . . Combat . | . . . . . Robot Hacks Applied . | . . . . . Relay Couplers Released . | . . . . . Fabnet Peak Effective % . | . . . . . Robots Rewired . | . . . . . Allies Hacked . | . . . . . Hacks Repelled . | . . . . . Allies | -11 -10 -10 -9 -9 -------- Run | Yrd Mat Min Mat Min Total Allies 2 | . . 2 . . Largest Group 2 | . . 2 2 . Highest-Rated Group 42 | . . 42 42 . Highest-Rated Ally 31 | . . 31 31 . Total Orders . | . . . . . Ally Attacks 17 | . . 1 16 . Total Damage 209 | . . 21 188 . Kills 5 | . . . 5 . Allies Corrupted . | . . . . . Allies Melted . | . . . . . Intel | -11 -10 -10 -9 -9 ------- Run | Yrd Mat Min Mat Min Robot Analysis Total 2 | . 1 . 1 . Derelict Logs Recovered 2 | . . 1 . 1 Drone Launches . | . . . . . Drone Recoveries . | . . . . . Exploration | -11 -10 -10 -9 -9 ------------- Run | Yrd Mat Min Mat Min Turns Passed 3625 | 91 1730 220 1385 199 Spaces Moved 1671 | 54 894 79 556 88 Core 4 | 4 . . . . Treads 1008 | 41 437 79 375 76 Legs . | . . . . . Wheels 659 | 9 457 . 181 12 Hover . | . . . . . Flight . | . . . . . Fastest Speed 50 | 50 115 240 120 95 Average Speed 187 | 142 175 240 198 221 Slowest Speed 240 | 160 240 240 240 240 Overloaded Moves . | . . . . . Propulsion Burnouts . | . . . . . Robots Hopped . | . . . . . Cave-ins Triggered . | . . . . . Exploration Rate (%) 41 | 5 96 20 59 28 Regions Visited 4 Branch Regions 2 Pre-discovered Areas 1 | . . . . 1 Known Exits Taken . | . . . . . Unknown Exits Taken 4 | 1 1 1 1 . Scrap Searched 1 | . . 1 . . Spaces Dug . | . . . . . Terrain Destroyed 17 | . . 10 7 . Melee . | . . . . . Projectile . | . . . . . AOE 17 | . . 10 7 . Terrain Rammed . | . . . . . Walls Destroyed . | . . . . . Machines Disabled . | . . . . . Actions | -11 -10 -10 -9 -9 --------- Run | Yrd Mat Min Mat Min Total 1986 | 65 975 109 746 91 Wait 118 | . 17 21 80 . Move 1667 | 53 893 78 555 88 Hop . | . . . . . Pick Up 36 | 6 8 5 17 . Fast Attach 17 | 6 5 . 6 . Attach 8 | . 3 . 3 2 Detach . | . . . . . Swap 16 | . 2 1 13 . Drop 26 | . 4 2 20 . Fire 98 | . 43 2 52 1 Melee . | . . . . . Ram . | . . . . . Kick . | . . . . . Crush . | . . . . . Escape Stasis . | . . . . . Rewire . | . . . . . Trap . | . . . . . Miscellaneous . | . . . . . Route ------- -11/Scrapyard -10/Materials (discovered 4 exits: *Mat x2 / *Min / [*Sub]) -10/Mines -9/Materials (discovered 3 exits: [*Min] / [*Sto x2]) -9/Mines (discovered 1 exit: [*Mat]) History --------- Turn | Location | Event 8 | -11/Scrapyard | Discovered new exit (range 16) 92 | -11/Scrapyard | Entered Materials 313 | -10/Materials | Build established: Mutant 409 | -10/Materials | Discovered new exit (range 12) 920 | -10/Materials | Discovered new exit (range 13) 1113 | -10/Materials | Discovered new exit (range 16) 1359 | -10/Materials | Central database locked down 1743 | -10/Materials | Discovered new exit (range 11) 1822 | -10/Materials | Entered Mines 1918 | -10/Mines | Learned Materials stockpile data 1935 | -10/Mines | Discovered new exit (range 14) 1971 | -10/Mines | Joined a pair of Derelicts in attacking an 0b10 outpost 2042 | -10/Mines | Entered Materials 2042 | -9/Materials | Accompanied by 2 allies 2042 | -9/Materials | Evolved 2 slots: Utility x2 2047 | -9/Materials | Led the pair of lost Derelicts to an unsafe place 2067 | -9/Materials | Discovered new exit (range 13) 2414 | -9/Materials | Discovered new exit (range 13) 2595 | -9/Materials | Discovered new exit (range 6) 3427 | -9/Materials | Entered Mines 3484 | -9/Mines | Discovered new exit (range 10) 3536 | -9/Mines | Learned location of Storage (-9) 3595 | -9/Mines | Assembled infested the area 3619 | -9/Mines | Core integrity fell below 50% 3623 | -9/Mines | Core integrity fell below 20% 3626 | -9/Mines | Destroyed by D-53 Grenadier with Mini Grenade Launcher Last Messages --------------- 03595_ ALERT: Infestation in the mines, dispatching Demolisher response squad. 03597_ K-01 Serf collects debris. 03603_ C-30 ARC bursts open, deploying its payload. 03603_ D-53 Grenadier unfolds itself. 03603_ K-01 Serf collects debris. 03605_ K-01 Serf destroyed. 03605_ U-05 Engineer destroyed. 03605_ K-01 Serf destroyed. 03611_ Lgt. Treads destroyed. 03612_ Lgt. Ion Engine destroyed. 03612_ Imp. EM Shotgun destroyed. 03613_ The unstable cave ceiling collapses. 03616_ Arm. Wheel destroyed. 03616_ Terrain Scanner destroyed. 03618_ The unstable cave ceiling collapses. 03618_ Adv. Beam Cannon destroyed. 03619_ The unstable cave ceiling collapses. 03626_ Wheel destroyed. Map ----- +----------------------------------------------------+ | | | | | | | | | | | | | | | | | | | | | | | | | | | | | ??????????????????????????##?????##?????#????????? | | ???????????????###?????????#?????##?????#?#??????? | | ?????????????? ?????????????####?????????????? | | ??????????????? ?????##??###??#????????#?#???? | | ?????????????? ????#??##???##??#?###?#?###?? | | ??????????????? ????#??#?#???#?#?##?#?????#? | | ????????????????? #################??#???#?? | | ?????????????? ??? ### # ##?#????#?? | | ???????????????? ? # ###?###?#? | | ????????????? ?? ? ?? # ###?##??? | | ??????????#??#????# ##### # ##?? | | ?????#???#???##???# @ #?# | | ????????????##??### ##### # ##???? | | ??????????##????### ##### # ! ##???? | | ????????????#??#?## ## ## ??? | | ?????#?????####?## #### d ##?????? | | ????????###??##?# ###### d! #? ???? | | ??????????####### """ " != ## #? | | ??????#??## ## """ "% % ! #### ???? | | ?????????# """ ##### ### ?? ##?? | | ?????###?# < ##?##### ##? #?#?# | | ?????????# ## # ######?## = ##?? #??#??? | | ??????#?# #### # ##?##### #?##??#????? | | ???????# ?#?## # #####?## ####?#?????# | | #???# ?# ? ?##### ####### ####?### ##???????? ? | | ??# ?? ?? #?#??# #####?? ###???## #???#?#????? | | ??#? ? ?#?#?## #####? #?#?##?# #?##?#?????? | | ##?? ?#? ##?##### #?## ??#?????# #?#????????? | | ?##?####?##?## #?#? ?????#?# ???????????? | | ???#?#???#### ##?? #???????#?????? ????? | | ?????##???## ## ##??#? ##???#??????????????? | | ????##?#?## #######?#???????????????????????? | | ???#??#### ###??#?#??? ??#??????????????????? | | #??##### ##?#?##???#???????????????????????? | | #??# ###?????????? ?????????????????????? | | ##?# ###?##??##??#??????????????????????? | +----------------------------------------------------+ Best States ------------- Heat Dissipation 28 Energy Generation 10 Energy Capacity 250 Matter Stores 300 Matter Capacity 300 Sight Range 16 Robot Scan Range 14 Terrain Scan Range 14 Terrain Scan Density 85 Armor Coverage 150 Evasion (%) 41 Targeting Accuracy 6 Recoil Reduction 2 Item Schematics ----------------- None Robot Schematics ------------------ None Fabricated ------------ Nothing Alien Tech Used ----------------- None Achievements -------------- None Challenges ------------ None Game ------ Seed DerelictHelicalPlating Manual? 0 Play Time 00:28:53 Cumulative 34.0 hours Start 2024.04.16 @ 21:28:32 End 2024.04.16 @ 22:13:29 Sessions 1 Manual Loads 0 Difficulty Rogue Special Mode None Game No. 22 Rogue 22 Adventurer 0 Explorer 0 Win Type - Total 0 Types 0/0/0/0/0/0/0/0/0 Lore% 22 Gallery% 27 Achievement% 21 Wizard Run 0 Options --------- Layout 1 ASCII 0 Keyboard 0 Movement Mouse Keybinds 0 Fullscreen 1 Font 48/Smallcaps Map View 50x35 Zoom Use 0% Tactical HUD 1 Map Filters NONE Filters NONE Steam 1 RUN: 70e41944-083e-49d1-b68a-1ef4ca237261